[Event "3rd VIZAG GM-Open 2022"]
[Site "Visakapatnam"]
[Date "2022.06.13"]
[Round "4.10"]
[White "Subhayan Kundu"]
[Black "Mirzoev, Azer"]
[Result "0-1"]
[ECO "C75"]
[WhiteElo "2323"]
[BlackElo "2476"]
[Annotator "TA"]
[PlyCount "78"]
[EventDate "2022.06.13"]
[EventType "swiss"]
[EventCountry "IND"]
[SourceTitle "playchess.com"]
[Source "ChessBase"]
[SourceQuality "1"]
[TimeControl "5400+30"]

{[%evp 13,78,44,52,52,47,47,47,47,42,46,45,39,37,31,50,50,44,49,67,68,44,29,39,31,70,17,20,5,22,0,0,0,0,0,0,0,0,0,0,0,0,0,0,0,0,0,0,-2,-16,-41,-60,-104,-86,-125,-41,-331,-331,-331,-340,-502,-497,-478,-478,-762,-727,-636,-518]} 1. e4 {[%emt 0:00:04]} e5 {[%emt 0:01:26]} 2. Nf3 {[%emt 0:00:19]} Nc6 {[%emt 0:00:05]} 3. Bb5 {[%emt 0:00:05]} a6 {[%emt 0:00:09]} 4. Ba4 {[%emt 0:00:07]} Nge7 {[%emt 0:00:15]} 5. c3 {[%emt 0:00:10]} d6 {[%emt 0:00:08]} 6. d4 {[%emt 0:00:18]} Bd7 {[%emt 0:00:09]} 7. d5 {[%emt 0:00:09]} Nb8 {[%emt 0:00:07][%cal Bc6b8,Bb8d7,Bd7f6,Bf6g4][%mdl 32]} 8. c4 {[%emt 0:00:06] C75: Ruy Lopez: Deferred Steinitz: 5 c3 Bd7 6 d4 without ...g6.} g6 {[%emt 0:00:35]} 9. Nc3 {[%emt 0:00:14]} Bg7 {[%emt 0:00:08]} 10. Be3 {[%emt 0:02:33] White is slightly better.} O-O {[%emt 0:00:08]} 11. Bxd7 {[%emt 0:00:25]} Nxd7 {[%emt 0:00:13]} 12. Qc2 {[%emt 0:01:58]} h6 {[%emt 0:03:00]} 13. Nd2 {[%emt 0:00:13]} f5 {[%emt 0:00:27] aiming for ...f4.} 14. f3 $1 {[%emt 0:00:08]} c5 {[%emt 0:06:50]} 15. dxc6 {[%emt 0:01:47] [#]} bxc6 $146 {[%emt 0:06:56]} ({Predecessor:} 15... Nxc6 16. Nb3 Nd4 17. Qd1 fxe4 18. Nxe4 Nc5 19. O-O Nxe4 20. Bxd4 exd4 21. fxe4 Rxf1+ 22. Qxf1 {½-½ (67) Molnar,B (2373)-Zsinka,L (2342) Hungary 2001}) 16. O-O-O {[%emt 0:15:58]} Nf6 {[%emt 0:07:50]} 17. Nb3 {[%emt 0:04:41]} Qc7 {[%emt 0:09:14]} 18. Kb1 {[%emt 0:05:10]} Kh7 {[%emt 0:02:41]} 19. Rd2 {[%emt 0:04:59]} (19. exf5 $14 Nxf5 20. Bf2) 19... fxe4 {[%emt 0:06:44]} 20. fxe4 {[%emt 0:15:31]} Ng4 {[%emt 0:00:27]} 21. Qd3 {[%emt 0:02:59]} a5 {[%emt 0:06:19][%cal Ba6a5,Ba5a4][%mdl 32]} 22. h3 {[%emt 0:03:47]} Nxe3 {[%emt 0:02:14]} 23. Qxe3 {[%emt 0:00:01]} a4 {[%emt 0:00:49]} 24. Nc1 {[%emt 0:02:47]} Nc8 {[%emt 0:03:23][%cal Be7c8,Bc8d6,Bd6b7][%mdl 32]} 25. c5 {[%emt 0:05:22] Inhibits Nb6.} Ra5 {[%emt 0:07:21]} 26. cxd6 {[%emt 0:04:00]} Nxd6 {[%emt 0:00:18]} 27. Qd3 {[%emt 0:00:05] Inhibits Nc4.} Rd8 {[%emt 0:03:54]} 28. Rhd1 {[%emt 0:03:56]} Nb7 {[%emt 0:06:01]} 29. Qc2 {[%emt 0:02:49]} Rd4 {[%emt 0:04:01]} 30. Rxd4 {[%emt 0:00:53]} exd4 {[%emt 0:00:13]} 31. Nxa4 {[%emt 0:00:03]} (31. Nd5 {feels hotter.} Qd6 32. Nb6 Qb4 33. Qxc6 Ra6 34. Nd5) 31... c5 {[%emt 0:01:53]} 32. Ne2 {[%emt 0:13:57][%cal Oe2d4]} Qe5 {[%emt 0:11:50][%cal Od4d3] ...d3! is the strong threat.} 33. Nc1 {[%emt 0:00:14]} Qe6 {[%emt 0:01:13] Prevents Nb6.} (33... c4 $1 $17 {Threatens to win with ...Qb5.} 34. Qxc4 Qxe4+ 35. Nd3 Qxg2) 34. b3 $2 {[%emt 0:01:16][%mdl 8192] [#] White does not recover from this.} ({Only move:} 34. e5 $1 $15) 34... Rxa4 $1 $19 {[%emt 0:01:51][%mdl 576] Deflection} 35. bxa4 {[%emt 0:00:02] Strongly threatening Nb3.} c4 {[%emt 0:00:13] Inhibits Nb3.} 36. Nd3 {[%emt 0:02:21] Against Nc5} (36. Nb3 $142 d3 37. Rxd3 cxd3 38. Qxd3) 36... cxd3 {[%emt 0:00:23] Black is clearly winning.} 37. Rxd3 {[%emt 0:00:01]} Qxe4 {[%emt 0:03:03][%cal Ob7c5] And now ...Nc5! would win.} 38. Rb3 {[%emt 0:00:23]} (38. Rd2 $142 d3 39. Qxd3 Qb4+ 40. Kc2) 38... Qe1+ {[%emt 0:00:26]} 39. Qc1 {[%emt 0:00:06]} Qe7 {[%emt 0:00:18] Weighted Error Value: White=0.32/Black=0.06 (flawless)} 0-1

[Event "3rd VIZAG GM-Open 2022"]
[Site "Visakapatnam"]
[Date "2022.06.13"]
[Round "4.11"]
[White "Audi Ameya"]
[Black "Ziatdinov, Raset"]
[Result "1-0"]
[ECO "C54"]
[WhiteElo "2389"]
[BlackElo "2224"]
[Annotator "TA"]
[PlyCount "79"]
[EventDate "2022.06.13"]
[EventType "swiss"]
[EventCountry "IND"]
[SourceTitle "playchess.com"]
[Source "ChessBase"]
[SourceQuality "1"]
[TimeControl "5400+30"]

{[%evp 12,79,29,17,39,17,8,12,26,0,11,27,14,-2,21,1,30,16,22,14,14,18,23,29,60,57,64,36,44,31,35,51,43,42,34,16,14,20,49,46,60,0,0,9,55,41,117,65,50,47,42,40,98,105,105,79,160,136,177,173,418,400,437,431,532,506,29984,29985,29971,7502]} 1. e4 {[%emt 0:00:02]} e5 {[%emt 0:00:04]} 2. Nf3 {[%emt 0:00:03]} Nc6 {[%emt 0:00:02]} 3. Bc4 {[%emt 0:00:05]} Bc5 {[%emt 0:00:06]} 4. c3 {[%emt 0:00:14]} Nf6 {[%emt 0:00:05]} 5. d3 {[%emt 0:00:02]} d6 {[%emt 0:00:40]} 6. O-O {[%emt 0:00:27]} Bb6 {[%emt 0:00:14]} 7. a4 {[%emt 0:00:39]} a5 {[%emt 0:00:10] C54: Giuoco Piano: 4 c3 Nf6, main lines with 5 d4 and 5 d3.} 8. Nbd2 {[%emt 0:04:47]} O-O {[%emt 0:00:24]} 9. h3 {[%emt 0:02:52]} Ne7 {[%emt 0:02:13] The position is equal.} 10. Re1 {[%emt 0:00:12]} Ng6 {[%emt 0:00:22]} 11. Bb3 {[%emt 0:10:57]} c6 {[%emt 0:00:42]} 12. d4 {[%emt 0:01:49]} Bc7 {[%emt 0:03:17] [#]} 13. Nf1 $146 {[%emt 0:14:21]} ({Predecessor:} 13. Bc2 Re8 14. Nf1 d5 15. Ng3 exd4 16. Qxd4 Bxg3 17. fxg3 Nxe4 18. Bxe4 dxe4 19. Rxe4 Qxd4+ 20. Rxd4 {½-½ (77) Landa,K (2626)-Nyback,T (2608) Germany 2016}) 13... exd4 {[%emt 0:02:23]} 14. Nxd4 {[%emt 0:00:17]} Re8 {[%emt 0:03:13]} 15. Ng3 {[%emt 0:02:59]} d5 {[%emt 0:04:28]} 16. exd5 {[%emt 0:00:21]} (16. Bg5 {with more complications.} Bxg3 17. fxg3 dxe4 18. g4) 16... Rxe1+ {[%emt 0:00:23]} (16... Nxd5 {keeps more tension.} 17. Rxe8+ Qxe8 18. Bd2 Bd7) 17. Qxe1 {[%emt 0:00:02] With the idea Bg5.} Bxg3 {[%emt 0:00:22]} 18. fxg3 {[%emt 0:00:38]} Nxd5 {[%emt 0:00:10]} 19. Qe4 {[%emt 0:08:34]} Nf6 {[%emt 0:03:05]} 20. Qf3 {[%emt 0:08:41]} c5 {[%emt 0:00:16]} 21. Nb5 {[%emt 0:02:08]} Qb6 {[%emt 0:16:39]} 22. Be3 {[%emt 0:07:09] Hoping for Rd1.} Bd7 $1 {[%emt 0:03:09]} 23. Qf2 $36 {[%emt 0:01:42][%mdl 2048] White has the initiative.} Rc8 {[%emt 0:03:48]} ({But not} 23... Bxb5 24. Bxc5 (24. axb5 Qxb5 25. Ba4 Qc4 $11) 24... Qc6 25. axb5 Qxb5 26. Ba4 $16) 24. Bc4 {[%emt 0:00:07][%cal Ob2b4]} Ne5 {[%emt 0:09:58]} 25. Bf1 {[%emt 0:00:03]} Qe6 {[%emt 0:00:42][%cal Oe5g4]} 26. Re1 {[%emt 0:02:33]} ({White should play} 26. Bf4 $14 Ne4 27. Qc2 Bxb5 28. Qxe4 (28. Bxb5 Nd6 $11) (28. axb5 f5 $11) 28... Bxf1 29. Rxf1) 26... Ne4 $11 {[%emt 0:01:17] Pair of Knights!} 27. Qf4 {[%emt 0:04:41]} f5 {[%emt 0:04:23]} (27... Bc6 $11 {feels stronger.} 28. g4 g5) 28. g4 $1 $14 {[%emt 0:03:40]} g6 {[%emt 0:02:03]} (28... Qf6 $1 $14) 29. gxf5 {[%emt 0:03:56]} (29. Bf2 $16) 29... gxf5 {[%emt 0:00:28]} 30. Bc1 {[%emt 0:01:34]} Ng6 {[%emt 0:19:36]} 31. Qh6 {[%emt 0:01:10]} Kh8 {[%emt 0:04:53]} (31... Qe5 $14) 32. c4 $16 {[%emt 0:03:23]} Bxb5 {[%emt 0:07:28]} 33. axb5 {[%emt 0:01:11][%cal Ob2b4]} Qe5 {[%emt 0:01:24] [#]} (33... Qd7 $142) 34. Rd1 $1 {[%emt 0:01:21][%cal Be1d1,Bd1d7,Bd7b7][%mdl 32]} Rg8 {[%emt 0:04:18]} (34... Qg3 $2 35. Rd7 Nf8 36. Rxb7 Qf2+ 37. Kh2 Qg3+ 38. Kg1 Qf2+ 39. Kh2 Qg3+ 40. Kh1 $18) 35. Rd7 {[%emt 0:04:44][%csl Gh6][%cal Rd7h7]} Nf6 {[%emt 0:01:20]} (35... Rg7 36. Rd5 Qe6) 36. Rxb7 $18 {[%emt 0:00:51] Strongly threatening Bg5.} f4 {[%emt 0:00:29]} 37. Rf7 {[%emt 0:02:51]} Qd4+ {[%emt 0:01:15] [#]} 38. Kh2 $1 {[%emt 0:00:04] Black must now prevent b6.} f3 {[%emt 0:00:21]} (38... a4 $18 39. b6 Qe5 40. Bxf4 Nxf4 41. Qxf6+ Qxf6 42. Rxf6 Rb8 43. Rxf4 Rxb6) 39. Bg5 {[%emt 0:01:50]} Qe5+ {[%emt 0:02:45]} 40. g3 {[%emt 0:00:03] Weighted Error Value: White=0.08 (flawless) /Black=0.42} 1-0

[Event "3rd VIZAG GM-Open 2022"]
[Site "Visakapatnam"]
[Date "2022.06.13"]
[Round "4.12"]
[White "Neelotpal, Das"]
[Black "Allahverdiyeva, Ayan"]
[Result "1-0"]
[ECO "B90"]
[WhiteElo "2431"]
[BlackElo "2120"]
[Annotator "TA"]
[PlyCount "79"]
[EventDate "2022.06.13"]
[EventType "swiss"]
[EventCountry "IND"]
[SourceTitle "playchess.com"]
[Source "ChessBase"]
[SourceQuality "1"]
[TimeControl "5400+30"]

{[%evp 9,79,16,30,3,14,0,0,0,4,0,6,9,38,27,34,20,33,11,9,14,22,24,27,27,42,25,37,37,93,31,54,54,48,4,11,0,0,0,7,9,98,96,100,90,84,87,90,59,165,167,157,174,165,169,177,188,641,670,445,665,668,668,679,743,749,756,737,723,746,754,761,787]} 1. e4 {[%emt 0:00:03]} c5 {[%emt 0:00:16]} 2. Nf3 {[%emt 0:00:05]} d6 {[%emt 0:00:03]} 3. d4 {[%emt 0:00:08]} cxd4 {[%emt 0:00:03]} 4. Nxd4 {[%emt 0:00:04]} Nf6 {[%emt 0:00:03]} 5. Nc3 {[%emt 0:00:05]} a6 {[%emt 0:00:03]} 6. Qd3 {[%emt 0:00:20] B90: Sicilian Najdorf: Unusual White 6th moves, 6 Be3 Ng4 and 6 Be3 e5.} e6 {[%emt 0:01:35]} 7. a4 $1 {[%emt 0:00:17][%mdl 4] is more profitable than 7.Be2 at the moment.} Nc6 {[%emt 0:00:56]} 8. Be2 {[%emt 0:02:05] The position is equal.} Be7 {[%emt 0:02:18]} 9. Nxc6 {[%emt 0:00:49]} bxc6 {[%emt 0:00:04]} 10. Qg3 {[%emt 0:00:05] [#]} e5 $146 {[%emt 0:12:41]} ({Predecessor:} 10... O-O 11. O-O d5 12. Bh6 Ne8 13. Bf4 Bh4 14. Qf3 Bf6 15. Rfd1 Qa5 16. Qg3 Bb7 {1-0 (51) Gadimbayli,A (2404)-Sokolovsky,Y (2278) Skopje 2019}) 11. O-O {[%emt 0:01:43]} (11. Qxg7 Rg8 12. Qh6 Rxg2 $15) 11... O-O {[%emt 0:00:35]} 12. f4 {[%emt 0:00:16]} Qc7 {[%emt 0:03:37]} 13. Kh1 {[%emt 0:09:14]} Kh8 {[%emt 0:00:47]} 14. Bd2 {[%emt 0:10:27]} Rb8 {[%emt 0:02:30]} 15. b3 {[%emt 0:00:58]} a5 {[%emt 0:03:48]} 16. Rad1 {[%emt 0:05:06]} Rb4 {[%emt 0:00:38]} 17. Bf3 {[%emt 0:02:13]} Ba6 {[%emt 0:06:52]} 18. Rfe1 {[%emt 0:00:47]} Rg8 {[%emt 0:04:52]} ({Better is} 18... Rbb8 $14) 19. Qf2 {[%emt 0:01:02]} (19. fxe5 $16 dxe5 20. Na2) 19... Bc8 {[%emt 0:05:12]} 20. Nb1 {[%emt 0:05:05]} Rb8 {[%emt 0:04:01]} 21. fxe5 {[%emt 0:05:23]} dxe5 {[%emt 0:01:04]} 22. Bc3 {[%emt 0:00:35]} Bb4 {[%emt 0:05:16]} 23. Bxb4 {[%emt 0:01:47]} Rxb4 {[%emt 0:00:04]} 24. Qc5 {[%emt 0:00:04]} Re8 {[%emt 0:04:03]} (24... Be6 $1 $11 {keeps the balance.}) 25. Na3 $16 {[%emt 0:04:23][%cal Oa3b5] Black is now going downhill.} Ba6 {[%emt 0:17:51] Inhibits Nb5.} 26. Rd6 {[%emt 0:02:08]} Rc8 {[%emt 0:00:40]} 27. Red1 {[%emt 0:03:17]} (27. Qxe5 $2 Ne8 28. Red1 Rd8 29. Qxa5 (29. c3 $2 Rbb8 $19) 29... Qxa5 $19) 27... h6 {[%emt 0:01:29]} ({Less strong is} 27... Nxe4 28. Bxe4 Rxe4 29. Qxc6 $3 {[%mdl 512]} Qxc6 30. Rxc6 Re1+ 31. Rxe1 $18) 28. h3 {[%emt 0:05:01]} Nxe4 {[%emt 0:01:55]} (28... Kh7 $14) 29. Bxe4 $18 {[%emt 0:00:41]} Rxe4 {[%emt 0:00:03]} 30. Rd7 {[%emt 0:00:15][%mdl 64] Prevents Rd4. Deflection. White is more active.} Qb8 {[%emt 0:02:52]} 31. Qxa5 {[%emt 0:02:07]} ({Resist} 31. Rxf7 Rf4 32. Re7 (32. Rxf4 exf4 33. Nc4 Bxc4 $14) 32... Rcf8 $16) 31... Be2 {[%emt 0:06:02] [#]} 32. Re1 $36 {[%emt 0:01:13][%mdl 2048] And now Qd2 would win. Keeping Black busy.} Rf4 $2 {[%emt 0:03:20]} (32... f5 33. Qd2 Ba6) 33. Rxe2 {[%emt 0:04:27] White is clearly winning.} Rf1+ {[%emt 0:00:03]} 34. Kh2 {[%emt 0:00:04]} e4+ {[%emt 0:00:14]} 35. g3 {[%emt 0:00:29]} f5 {[%emt 0:01:27]} 36. Nc4 {[%emt 0:13:28]} f4 {[%emt 0:01:34]} 37. Qe5 {[%emt 0:00:24]} Qxe5 {[%emt 0:02:17]} 38. Nxe5 {[%emt 0:00:20]} f3 {[%emt 0:00:20]} 39. Rxe4 {[%emt 0:01:00]} f2 {[%emt 0:00:25]} 40. Rf4 {[%emt 0:02:09] Weighted Error Value: White=0.09 (flawless) /Black=0.35} 1-0

[Event "3rd VIZAG GM-Open 2022"]
[Site "Visakapatnam"]
[Date "2022.06.13"]
[Round "4.13"]
[White "Liyanage, Pesandu Rashmitha"]
[Black "Savchenko, Boris"]
[Result "0-1"]
[ECO "D00"]
[WhiteElo "1730"]
[BlackElo "2524"]
[Annotator "RC"]
[PlyCount "72"]
[EventDate "2022.06.13"]
[EventType "swiss"]
[EventCountry "IND"]
[SourceTitle "playchess.com"]
[Source "ChessBase"]
[SourceQuality "1"]
[TimeControl "5400+30"]

1. d4 {[%emt 1:31:00]} Nf6 {[%emt 1:31:00]} 2. Bf4 {[%emt 0:00:30]} e6 {[%emt 0:00:30]} 3. e3 {[%emt 0:00:30]} c5 {[%emt 0:00:30]} 4. c3 {[%emt 0:00:30]} d5 {[%emt 0:00:30]} 5. Nd2 {[%emt 0:00:30]} Bd6 {[%emt 0:00:30]} 6. Bg3 {[%emt 0:00:30]} O-O {[%emt 0:00:30]} 7. Ngf3 {[%emt 0:00:30]} Qc7 {[%emt 0:00:30]} 8. dxc5 {[%emt 0:00:30]} Qxc5 {[%emt 0:00:30]} 9. Bd3 {[%emt 0:00:30]} Rd8 {[%emt 0:00:30]} 10. Qe2 {[%emt 0:00:30]} Nc6 {[%emt 0:00:30]} 11. e4 {[%emt 0:00:30]} Bxg3 {[%emt 0:00:30]} 12. hxg3 {[%emt 0:00:30]} e5 {[%emt 0:00:30]} 13. exd5 {[%emt 0:00:30]} Qxd5 {[%emt 0:00:30]} 14. Bc4 {[%emt 0:00:30]} Qd7 {[%emt 0:00:30]} 15. Ng5 {[%emt 0:00:30]} Rf8 {[%emt 0:00:30]} 16. Nde4 {[%emt 0:00:30]} Nxe4 {[%emt 0:00:30]} 17. Qxe4 {[%emt 0:00:30]} Qf5 {[%emt 0:00:30]} 18. Qe3 {[%emt 0:00:30]} h6 {[%emt 0:00:30]} 19. Bd3 {[%emt 0:00:30]} Qg4 {[%emt 0:00:30]} 20. Qe4 {[%emt 0:00:30]} Rd8 {[%emt 0:00:30]} 21. Qh7+ {[%emt 0:00:30]} Kf8 {[%emt 0:00:30]} 22. Nf3 {[%emt 0:00:30]} Qe6 {[%emt 0:00:30]} 23. Rh4 {[%emt 0:00:30]} f5 {[%emt 0:00:30]} 24. Qh8+ {[%emt 0:00:30]} Qg8 {[%emt 0:00:30]} 25. Qxg8+ {[%emt 0:00:30]} Kxg8 {[%emt 0:00:30]} 26. Bb5 {[%emt 0:00:30]} e4 {[%emt 0:00:30]} 27. Bxc6 {[%emt 0:00:30]} bxc6 {[%emt 0:00:30]} 28. Ne5 {[%emt 0:00:30]} c5 {[%emt 0:00:30]} 29. f4 {[%emt 0:00:30]} a5 {[%emt 0:00:30]} 30. Rd1 {[%emt 0:00:30]} Be6 {[%emt 0:00:30]} 31. c4 {[%emt 0:00:30]} a4 {[%emt 0:00:30]} 32. Rh1 {[%emt 0:00:30]} Rd4 {[%emt 0:00:30]} 33. Ke2 {[%emt 0:00:30]} Bxc4+ {[%emt 0:00:30]} 34. Nxc4 {[%emt 0:00:30]} Rxc4 {[%emt 0:00:30]} 35. Rc1 {[%emt 0:00:30]} Rb4 {[%emt 0:00:30]} 36. Rc2 {[%emt 0:00:30]} Rab8 {[%emt 0:00:30]} 0-1

[Event "3rd VIZAG GM-Open 2022"]
[Site "Visakapatnam"]
[Date "2022.06.13"]
[Round "4.14"]
[White "Velpula Sarayu"]
[Black "Mitrabha, Guha"]
[Result "0-1"]
[ECO "C01"]
[WhiteElo "1845"]
[BlackElo "2500"]
[Annotator "TA"]
[PlyCount "114"]
[EventDate "2022.06.13"]
[EventType "swiss"]
[EventCountry "IND"]
[SourceTitle "playchess.com"]
[Source "ChessBase"]
[SourceQuality "1"]
[TimeControl "5400+30"]

{[%evp 14,114,22,22,26,25,26,28,34,20,10,20,25,27,38,10,66,50,62,61,54,59,83,92,82,85,77,56,60,51,42,17,58,72,136,56,82,42,86,64,84,75,76,65,83,56,89,89,102,108,109,106,145,116,116,64,68,33,35,38,37,32,30,15,21,0,23,33,48,55,54,54,65,0,21,-124,-120,-120,-129,-282,-131,-134,-97,-154,-150,-256,-106,-130,-127,-135,-139,-181,-181,-181,-181,-181,-137,-153,-123,-547,-128,-616,-599]} 1. e4 {[%emt 1:31:00]} e6 {[%emt 1:31:00]} 2. d4 {[%emt 0:00:30]} d5 {[%emt 0:00:30]} 3. Bd3 {[%emt 0:00:30]} c5 {[%emt 0:00:30]} 4. exd5 {[%emt 0:00:30]} exd5 {[%emt 0:00:30]} 5. Nf3 {[%emt 0:00:30]} Nf6 {[%emt 0:00:30]} 6. O-O {[%emt 0:00:30]} c4 {[%emt 0:00:30]} 7. Re1+ {[%emt 0:00:30]} Be7 {[%emt 0:00:30]} 8. Bf1 {[%emt 0:00:30]} O-O {[%emt 0:00:30] C01: French: Exchange Variation.} 9. b3 {[%emt 0:00:30]} cxb3 {[%emt 0:00:30]} 10. axb3 {[%emt 0:00:30]} Nc6 {[%emt 0:00:30] White has an edge.} 11. h3 {[%emt 0:00:30]} Bf5 {[%emt 0:00:30]} 12. c3 {[%emt 0:00:30]} Ne4 {[%emt 0:00:30]} 13. Bb2 {[%emt 0:00:30] [#]} Re8 $146 {[%emt 0:00:30]} ({Predecessor:} 13... Rc8 14. Nbd2 h6 15. Nxe4 Bxe4 16. Bd3 f5 17. Ne5 Nxe5 18. dxe5 Bc5 19. c4 dxc4 20. Bxc4+ {1-0 (51) Levitsky,A (2329)-Golubenko,V (2209) Chess.com INT 2021}) 14. Na3 {[%emt 0:00:30]} Qd6 {[%emt 0:00:30]} (14... Bg6 $11) 15. c4 $14 {[%emt 0:00:30]} Rad8 {[%emt 0:00:30]} 16. cxd5 {[%emt 0:00:30]} Qxd5 {[%emt 0:00:30]} 17. Nb5 $1 {[%emt 0:00:30]} Bb4 {[%emt 0:00:30]} 18. Re3 {[%emt 0:00:30]} Qd7 {[%emt 0:00:30] Inhibits Nc7.} 19. Nxa7 {[%emt 0:00:30]} Bd6 {[%emt 0:00:30]} 20. Re1 {[%emt 0:00:30]} Nxa7 {[%emt 0:00:30]} 21. Rxa7 {[%emt 0:00:30]} Bg6 {[%emt 0:00:30]} 22. Bd3 {[%emt 0:00:30]} Bb8 {[%emt 0:00:30]} 23. Ra1 {[%emt 0:00:30]} Qd6 {[%emt 0:00:30]} (23... Bf4 $142) 24. Ba3 {[%emt 0:00:30]} ({Better is} 24. Bb5 $1 $16) 24... Qf4 {[%emt 0:00:30][%cal Oe4f2]} 25. Qc1 {[%emt 0:00:30]} Qf6 {[%emt 0:00:30][%cal Oe4f2]} 26. Qb1 {[%emt 0:00:30][%cal Re1e4]} Nc3 {[%emt 0:00:30]} 27. Qc2 $36 {[%emt 0:00:30][%mdl 2048] White is in control.} Nd5 {[%emt 0:00:30]} 28. Bxg6 {[%emt 0:00:30]} hxg6 {[%emt 0:00:30]} 29. Re4 {[%emt 0:00:30]} Nf4 {[%emt 0:00:30][%cal Of4h3]} 30. Rae1 {[%emt 0:00:30]} Ne6 {[%emt 0:00:30]} 31. Qc4 {[%emt 0:00:30] And now d5 would win.} Qf5 {[%emt 0:00:30] Prevents d5.} 32. Bc5 {[%emt 0:00:30]} Bc7 {[%emt 0:00:30]} 33. Bb4 {[%emt 0:00:30][%cal Oe4e6]} Rc8 {[%emt 0:00:30][%cal Bd8c8,Bc8c6,Bc6b6][%mdl 32]} 34. Qe2 {[%emt 0:00:30]} (34. d5 $16 Bf4 35. Qd3) 34... Red8 {[%emt 0:00:30] Prevents Nd4.} 35. Bd2 {[%emt 0:00:30]} Qd5 {[%emt 0:00:30]} 36. Qd1 {[%emt 0:00:30]} Bd6 {[%emt 0:00:30]} 37. Qb1 {[%emt 0:00:30]} Rc6 {[%emt 0:00:30]} 38. Qb2 {[%emt 0:00:30][%cal Oe4e5] With the idea Re5!} Rdc8 {[%emt 0:00:30]} 39. Qb1 {[%emt 0:00:30]} Rb6 {[%emt 0:00:30]} 40. R4e3 {[%emt 0:00:30]} Rbc6 {[%emt 0:00:30]} 41. Qe4 {[%emt 0:00:30]} Qxe4 {[%emt 0:00:30]} 42. Rxe4 {[%emt 0:00:30] Hoping for d5.} Nc7 {[%emt 0:00:30]} 43. Bf4 {[%emt 0:00:30][%cal Od4d5] Strongly threatening d5!} (43. Ne5 $5 {[%cal Re5c6]} Ra6 44. g3 $14) 43... f5 {[%emt 0:00:30] [#]} 44. Bxd6 {[%emt 0:00:30]} fxe4 $17 {[%emt 0:00:30]} 45. Bxc7 {[%cal Oe1e4]} exf3 $11 {[%emt 0:00:30][%mdl 4096] Endgame KRR-KRB} ({But not} 45... R6xc7 $6 46. Rxe4 Rc1+ 47. Kh2 $11) 46. Be5 {[%emt 0:01:00]} (46. Bf4 $17 {only move.}) 46... fxg2 {[%emt 0:00:30]} (46... Rc1 $19 47. Rxc1 Rxc1+ 48. Kh2 fxg2 49. Kxg2 Rb1) 47. Kxg2 $17 {[%emt 0:00:30]} Kf7 {[%emt 0:00:30]} 48. Re3 {[%emt 0:00:30] [#]} ({White should play} 48. Re4) 48... Rc3 $1 {[%emt 0:00:30]} 49. Kf3 {[%emt 0:00:30]} (49. b4 $17 {is a better defense.}) 49... Rc2 {[%emt 0:00:30]} (49... Rxe3+ $19 {and Black stays clearly on top.} 50. fxe3 Rc6) 50. d5 {[%emt 0:00:30]} Rd2 {[%emt 0:00:30] Inhibits Rd3.} 51. d6 {[%emt 0:00:30]} Re8 {[%emt 0:00:30]} 52. Kg3 {[%emt 0:00:30]} g5 {[%emt 0:00:30]} 53. Kg4 {[%emt 0:00:30]} Kg6 {[%emt 0:00:30]} ({And not} 53... Rxf2 54. Rd3 $17) 54. f4 {[%emt 0:00:30]} ({Don't play} 54. Bc3 Rxe3 55. fxe3 Rxd6 $19) 54... gxf4 {[%emt 0:00:30]} 55. Kxf4 {[%emt 0:00:30]} Kf7 {[%emt 0:00:30]} 56. Rg3 $2 {[%emt 0:00:30][%mdl 8192]} (56. h4 $17 {is a better chance.}) 56... g6 $2 {[%emt 0:00:30]} (56... Rf2+ $19 {has better winning chances.} 57. Ke3 Rf5 58. Rxg7+ Kf8) 57. Rc3 $2 {[%emt 0:00:30][%mdl 8192]} (57. Rf3 $17 Ke6 58. Kg4) 57... g5+ {[%emt 0:00:30] Weighted Error Value: White=0.51/Black=0.28 (precise)} 0-1